bitfinex-derivatives/quotes_ETHF0:USTF0_20241018
["timestamp","ask_amount","ask_price","bid_price","bid_amount"]
[1729287091581,0.99173654,2646.3,2646.2,0.37788]
[1729287091777,0.99173654,2646.3,2646.2,3.80423113]
[1729287092375,0.99173654,2646.3,2646.2,2.72803582]
[1729287094979,0.99173654,2646.4,2646.3,0.37786]
[1729287095285,3.25491452,2646.5,2646.3,1.36]
[1729287095488,0.99019498,2646.4,2646.3,0.37786]
[1729287095688,0.99019498,2646.4,2646.3,1.73786]
[1729287098084,0.99019498,2646.4,2646.3,0.37786]
[1729287098388,0.99019498,2646.4,2646.3,1.73786]
[1729287101088,0.4073,2646.5,2646.4,0.37785]
[1729287101089,1.39749498,2646.5,2646.4,0.37785]
[1729287101391,1.3968582,2646.5,2646.4,1.73785]
[1729287101690,1.39685997,2646.5,2646.4,1.73785]
[1729287101886,0.4073,2646.5,2646.4,1.73785]
[1729287102094,1.39686904,2646.5,2646.4,1.73785]
[1729287102889,0.4073,2646.5,2646.4,1.73785]
[1729287103791,0.78513,2646.5,2646.4,1.73785]
[1729287103995,1.77461345,2646.5,2646.4,1.73785]
[1729287104183,1.39678345,2646.5,2646.4,1.73785]
[1729287112291,0.4073,2646.5,2646.4,1.73785]
[1729287112607,1.39678345,2646.5,2646.4,1.73785]
[1729287119613,2.69853452,2646.6,2646.4,2.19]
[1729287119614,1.48761452,2646.6,2646.4,2.19]
[1729287119809,2.47476326,2646.9,2646.4,2.19]
[1729287119810,0.98978583,2646.8,2646.7,0.37781]
[1729287120014,0.98978583,2646.9,2646.8,0.37779]
[1729287120208,0.98978583,2647.0,2646.9,0.37778]
[1729287120408,0.98978583,2647.0,2646.9,3.92778]
[1729287120711,1.39808583,2647.2,2646.9,3.26323528]
[1729287121016,1.39808583,2647.2,2647.1,1.73775]
[1729287122018,0.4083,2647.2,2647.1,1.73775]
[1729287126215,4.19758583,2647.4,2647.3,0.37772]
[1729287126409,4.19758583,2647.4,2647.3,1.73772]
[1729287126410,3.2078,2647.4,2647.3,1.73772]
[1729287127611,1.76467583,2647.5,2647.3,1.36]
[1729287127817,1.38698583,2647.5,2647.4,1.36]
[1729287128010,1.38698583,2647.5,2647.4,1.73771]
[1729287128212,0.3972,2647.5,2647.4,1.73771]
[1729287132220,0.98978583,2647.8,2647.4,2.19]
[1729287132423,3.2078,2647.9,2647.8,0.37765]
[1729287132719,3.2078,2647.9,2647.8,1.73765]
[1729287133525,1.2485,2648.0,2647.9,0.37763]
[1729287133825,1.2485,2648.0,2647.9,1.73763]
[1729287135116,1.62612,2648.0,2647.9,1.73763]
[1729287141317,2.61177483,2648.0,2647.9,1.73763]
[1729287141517,0.98565483,2648.0,2647.9,1.73763]
[1729287141718,4.19345483,2648.2,2647.9,1.36]
[1729287141921,4.19345483,2648.2,2648.1,1.36]
[1729287142133,4.19345483,2648.2,2648.1,1.73761]
[1729287143623,3.2078,2648.2,2648.1,1.73761]
[1729287144327,3.2078,2648.2,2648.1,1.36]
[1729287144520,3.2078,2648.2,2648.1,1.73761]
[1729287144727,2.21745483,2648.3,2648.2,0.37759]
[1729287144923,2.59503483,2648.3,2648.2,1.73759]
[1729287146624,1.2318,2648.3,2648.2,1.73759]
[1729287147023,0.98565483,2648.4,2648.2,1.36]
[1729287147217,4.57101483,2648.5,2648.3,1.73758]
[1729287147419,4.57101483,2648.5,2648.4,2.14386]
[1729287147420,5.0005521,2648.5,2648.4,2.14386]
[1729287147924,4.01576,2648.5,2648.4,2.14386]
[1729287149434,3.2078,2648.5,2648.4,2.14386]
[1729287149928,3.58535,2648.5,2648.4,2.14386]
[1729287150522,3.58535,2648.5,2648.4,1.36]
[1729287150829,3.58535,2648.5,2648.2,2.56658]
[1729287150830,0.37759,2648.3,2648.2,2.56658]
[1729287151626,2.5642,2648.4,2647.5,3.2078]
[1729287151825,2.5642,2648.4,2647.9,0.37762]
[1729287151826,0.37762,2648.0,2647.9,0.37762]
[1729287152033,0.37762,2648.0,2647.9,1.73762]
[1729287154236,0.37762,2648.0,2647.9,1.36]
[1729287156829,1.59042,2648.0,2647.9,1.36]
[1729287159534,2.5752121,2648.0,2647.9,1.36]
[1729287162431,3.07803452,2648.0,2647.9,1.36]
[1729287163031,3.07803452,2648.0,2647.9,1.73763]
[1729287163032,0.37762,2648.0,2647.9,1.73763]
[1729287163424,4.99483742,2648.2,2648.0,0.37761]
[1729287163630,4.99482742,2648.2,2648.1,1.7611]
[1729287164641,5.49530452,2648.2,2648.1,1.7611]
[1729287165639,4.00769,2648.2,2648.1,1.7611]
[1729287166033,4.00769,2648.2,2648.1,1.36]
[1729287166243,5.98933743,2648.2,2648.1,1.36]
[1729287166436,2.78153743,2648.2,2648.1,1.36]
[1729287166636,5.98933743,2648.2,2648.1,1.36]
[1729287168733,5.98933743,2648.2,2648.1,1.36]
[1729287170544,5.98933743,2648.2,2648.1,1.73761]
[1729287171238,8.11455855,2648.2,2648.1,1.73761]
[1729287172032,8.11483527,2648.2,2648.1,1.73761]
[1729287173438,5.64007201,2648.2,2648.1,1.73761]
[1729287174044,8.1144788,2648.2,2648.1,1.73761]
[1729287174340,5.64007201,2648.2,2648.1,1.73761]
[1729287175545,5.64105847,2648.2,2648.1,1.73761]
[1729287175745,5.64105847,2648.2,2648.1,0.37761]
[1729287176850,5.64118584,2648.2,2648.1,0.37761]
[1729287178341,8.1166114,2648.2,2648.1,0.37761]
[1729287180143,8.1166114,2648.2,2648.1,1.73761]
[1729287180850,8.11706949,2648.2,2648.1,1.73761]
[1729287181350,4.90926949,2648.2,2648.1,1.73761]
[1729287181553,5.64162972,2648.2,2648.1,1.73761]
[1729287181953,8.11705528,2648.2,2648.1,1.73761]
[1729287184745,8.11740561,2648.2,2648.1,1.73761]
[1729287186258,5.64198005,2648.2,2648.1,1.73761]
[1729287188046,2.43418005,2648.2,2648.1,1.73761]
[1729287188555,5.64198005,2648.2,2648.1,1.73761]
[1729287189358,5.64240397,2648.2,2648.1,1.73761]
[1729287190347,5.64240397,2648.2,2648.1,0.37761]
[1729287191251,2.43460397,2648.2,2648.1,0.37761]
[1729287191558,5.64240397,2648.2,2648.1,0.37761]
[1729287192249,2.43460397,2648.2,2648.1,0.37761]
[1729287192452,5.64240397,2648.2,2648.1,0.37761]
[1729287193354,2.43460397,2648.2,2648.1,0.37761]
[1729287193757,5.64240397,2648.2,2648.1,0.37761]
[1729287196063,2.43460397,2648.2,2648.1,0.37761]
[1729287196463,5.26481397,2648.2,2647.9,3.56093767]
[1729287196761,2.47831473,2648.0,2647.9,3.93856767]
[1729287196960,4.1130287,2648.0,2647.9,2.95043]
[1729287197351,4.11393725,2648.0,2647.9,2.95043]
[1729287198263,0.37762,2648.1,2647.9,3.56093767]
[1729287198264,2.85593473,2648.1,2647.9,3.56093767]
[1729287198461,2.85593473,2648.1,2648.0,0.37762]
[1729287198657,4.49163372,2648.1,2648.0,0.37762]
[1729287206362,2.01331899,2648.1,2648.0,0.37762]
[1729287207065,2.85639118,2648.1,2648.0,0.37762]
[1729287207262,2.01331899,2648.1,2648.0,0.37762]
[1729287207970,2.47885571,2648.1,2648.0,1.36575767]
[1729287208159,2.47885571,2648.1,2648.0,2.43509451]
[1729287208160,4.49230433,2648.1,2648.0,2.43509451]
[1729287208360,4.49230433,2648.1,2648.0,1.36575767]
[1729287208555,1.63583862,2648.1,2648.0,1.73762]
[1729287210269,2.01344862,2648.1,2648.0,1.73762]
[1729287212874,2.01348086,2648.1,2648.0,1.73762]
[1729287216874,2.8562656,2648.1,2648.0,1.73762]
[1729287217060,4.49213646,2648.1,2648.0,1.73762]
[1729287217261,2.01348086,2648.1,2648.0,1.73762]
[1729287217461,4.49226646,2648.1,2648.0,2.72575767]
[1729287221569,4.98144263,2648.1,2648.0,2.72575767]
[1729287221775,4.60383263,2648.1,2648.0,2.72575767]
[1729287221977,4.11465646,2648.1,2648.0,2.72575767]
[1729287223967,4.11465646,2648.1,2648.0,7.6914402]
[1729287223968,1.98281994,2648.1,2648.0,7.6914402]
[1729287224164,0.56278964,2648.2,2648.0,6.39504015]
[1729287224165,1.98281994,2648.2,2648.0,6.39504015]
[1729287224364,1.48703678,2648.2,2648.1,2.80645627]
[1729287224771,1.48703678,2648.2,2648.1,6.58245627]
[1729287225386,1.48611853,2648.3,2648.1,7.94245627]
[1729287225578,1.48611853,2648.3,2648.2,9.42668383]
[1729287225779,1.48611853,2648.3,2648.2,9.84498383]
[1729287226278,5.19061994,2648.5,2648.3,0.37758]
[1729287226279,1.48611853,2648.4,2648.3,0.37758]
[1729287226469,1.48569022,2648.4,2648.3,3.98889097]
[1729287226666,5.19061994,2648.5,2648.4,0.37756]
[1729287226874,5.19061994,2648.5,2648.4,3.09756]
[1729287227781,3.2078,2648.5,2648.4,3.09756]
[1729287229288,4.69262891,2648.5,2648.4,3.09756]
[1729287229988,3.2078,2648.5,2648.4,3.09756]
[1729287230185,4.69263114,2648.5,2648.4,3.09756]
[1729287230487,4.69242397,2648.5,2648.4,3.09756]
[1729287231592,5.19061994,2648.5,2648.4,3.09756]
[1729287232688,1.98281994,2648.5,2648.4,3.09756]
[1729287233686,1.98281994,2648.5,2648.4,6.87356]
[1729287234186,1.98281994,2648.5,2648.4,3.09756]
[1729287236285,5.56374685,2648.6,2648.5,0.37755]
[1729287236589,5.18621685,2648.6,2648.5,1.73755]
[1729287236785,5.18621685,2648.6,2648.5,2.12515]
[1729287237479,5.56374685,2648.6,2648.5,2.12515]
[1729287238590,5.06880141,2648.6,2648.5,2.12515]
[1729287239983,1.86100141,2648.6,2648.5,2.12515]
[1729287240184,5.06880141,2648.6,2648.5,2.12515]
[1729287241891,1.86100141,2648.6,2648.5,2.12515]
[1729287243193,2.70530141,2648.6,2648.5,2.95015]
[1729287244189,2.70530141,2648.6,2648.5,1.73755]
[1729287244384,2.70530141,2648.6,2648.5,2.56255]
[1729287245795,3.20024685,2648.6,2648.5,2.56255]
[1729287245991,2.82271685,2648.6,2648.5,2.56255]
[1729287246792,6.03051685,2648.6,2648.5,2.56255]
[1729287247596,6.40804685,2648.6,2648.5,2.56255]
[1729287248601,6.03051685,2648.6,2648.5,3.92255]
[1729287248901,4.0521,2648.6,2648.5,3.92255]
[1729287253600,5.04078897,2648.6,2648.5,3.92255]
[1729287254399,1.83298897,2648.6,2648.5,3.92255]
[1729287256101,0.8443,2648.6,2648.5,3.92255]
[1729287256801,3.2078,2648.7,2648.5,7.321]
[1729287257105,3.2078,2648.7,2648.6,1.73753]
[1729287257301,4.19645529,2648.7,2648.6,2.12733]
[1729287257499,3.2078,2648.7,2648.6,2.12733]
[1729287258001,4.19645529,2648.7,2648.6,2.12733]
[1729287258195,0.98865529,2648.8,2648.6,1.7498]
[1729287258400,2.67837294,2648.9,2648.7,1.36]
[1729287258603,2.67837294,2648.9,2648.8,1.73751]
[1729287260402,4.40319,2648.9,2648.8,1.73751]
[1729287262508,4.40319,2648.9,2648.8,1.73751]
[1729287263103,6.01367531,2648.9,2648.8,1.73751]
[1729287263311,8.48531354,2648.9,2648.8,1.73751]
[1729287263704,5.63618531,2648.9,2648.8,1.73751]
[1729287263905,4.40319,2648.9,2648.8,1.73751]
[1729287264811,6.0139878,2648.9,2648.8,1.73751]
[1729287265710,8.10813603,2648.9,2648.8,1.73751]
[1729287265912,4.0257,2648.9,2648.8,1.73751]
[1729287266414,4.40319,2648.9,2648.8,1.73751]
[1729287266814,4.0257,2648.9,2648.8,1.73751]
[1729287267313,6.01472052,2648.9,2648.8,1.73751]
[1729287267614,4.40319,2648.9,2648.8,1.73751]
[1729287267816,6.01466208,2648.9,2648.8,1.73751]
[1729287268510,8.48630031,2648.9,2648.8,1.73751]
[1729287268720,4.40319,2648.9,2648.8,1.73751]
[1729287269421,6.38245266,2648.9,2648.8,1.73751]
[1729287274024,6.00496266,2648.9,2648.8,1.73751]
[1729287274213,6.38245266,2648.9,2648.8,1.73751]
[1729287274413,4.40319,2648.9,2648.8,1.73751]
[1729287274716,6.38245266,2648.9,2648.8,1.73751]
[1729287275722,8.48695454,2648.9,2648.8,1.73751]
[1729287277017,3.66702823,2648.9,2648.8,1.73751]
[1729287277220,1.97957253,2648.9,2648.8,1.36]
[1729287277423,1.97957253,2648.9,2648.8,1.73751]
[1729287280919,1.97957253,2649.0,2648.9,0.37749]
[1729287281124,6.07593823,2649.1,2648.9,0.37749]
[1729287281125,6.45339823,2649.1,2649.0,0.37748]
[1729287281325,8.06530022,2649.1,2649.0,1.73748]
[1729287281727,3.98176,2649.1,2649.0,1.73748]
[1729287282726,6.45603342,2649.1,2649.0,1.73748]
[1729287282928,8.06794121,2649.1,2649.0,1.73748]
[1729287283123,4.86014121,2649.1,2649.0,1.73748]
[1729287283430,8.06794121,2649.1,2649.0,1.73748]
[1729287283831,5.96117551,2649.1,2649.0,1.73748]
[1729287284621,5.58371551,2649.1,2649.0,1.73748]
[1729287284822,3.6043,2649.1,2649.0,1.73748]
[1729287285027,5.08872851,2649.1,2649.0,1.73748]
[1729287285330,1.88092851,2649.1,2649.0,1.73748]
[1729287287531,1.88092851,2649.1,2649.0,2.56148]
[1729287287532,1.48442851,2649.1,2649.0,2.56148]
[1729287290635,1.48442851,2649.2,2649.0,2.184]
[1729287290935,2.35685551,2649.3,2649.2,0.37745]
[1729287291234,2.35685551,2649.3,2649.2,1.73745]
[1729287291436,2.35685551,2649.3,2649.2,1.36]
[1729287291834,2.35685551,2649.3,2649.2,1.73745]
[1729287292235,1.97941551,2649.3,2649.2,1.36]
[1729287292433,2.35684551,2649.3,2649.2,1.36]
[1729287292632,2.35684551,2649.3,2649.2,1.73745]
[1729287292830,2.35684551,2649.3,2649.2,1.36]
[1729287293031,2.35684551,2649.3,2649.2,1.73745]
[1729287295729,0.37743,2649.3,2649.2,1.73745]
[1729287295930,2.35684551,2649.3,2649.2,1.73745]
[1729287299028,1.9888149,2649.3,2649.2,1.73745]
[1729287300536,0.37743,2649.3,2649.2,1.73745]
[1729287300742,1.98902188,2649.3,2649.2,1.73745]
[1729287301338,1.61159188,2649.3,2649.2,1.73745]
[1729287301640,1.98902188,2649.3,2649.2,1.73745]
[1729287304244,1.98911844,2649.3,2649.2,1.73745]
[1729287305447,2.85146596,2649.3,2649.2,1.73745]
[1729287305643,4.4631544,2649.3,2649.2,1.73745]
[1729287305837,1.98911844,2649.3,2649.2,1.73745]
[1729287306033,0.37743,2649.3,2649.2,1.73745]
[1729287315850,1.9895855,2649.3,2649.2,1.73745]
[1729287316556,1.98964883,2649.3,2649.2,1.73745]
[1729287316852,0.37743,2649.3,2649.2,1.73745]
[1729287317452,1.98967348,2649.3,2649.2,1.73745]
[1729287318558,6.07698046,2649.3,2649.2,1.73745]
[1729287320046,4.46465467,2649.3,2649.2,1.73745]
[1729287320249,1.98967348,2649.3,2649.2,1.73745]
[1729287320955,0.37743,2649.3,2649.2,1.73745]
[1729287321151,4.46551565,2649.3,2649.2,1.73745]
[1729287321357,1.99006375,2649.3,2649.2,1.73745]
[1729287321747,0.37743,2649.3,2649.2,1.73745]
[1729287322748,1.99039292,2649.3,2649.2,1.73745]
[1729287325957,1.99074245,2649.3,2649.2,1.73745]
[1729287326853,0.37743,2649.3,2649.2,1.73745]
[1729287328358,1.99101093,2649.3,2649.2,1.73745]
[1729287331261,1.9915274,2649.3,2649.2,1.73745]
[1729287331857,0.37743,2649.3,2649.2,1.73745]
[1729287332859,1.99157154,2649.3,2649.2,1.73745]
[1729287334161,1.61414154,2649.3,2649.1,0.3949]
[1729287334359,2.40419154,2649.2,2649.1,0.77236]
[1729287334559,2.79769154,2649.2,2649.1,1.7549]
[1729287334862,3.66137502,2649.2,2649.1,1.7549]
[1729287335059,2.79769154,2649.2,2649.1,1.7549]
[1729287336461,4.1568745,2649.2,2649.1,1.7549]
[1729287337267,1.18355,2649.2,2649.1,1.7549]
[1729287338169,8.35305111,2649.2,2649.1,1.7549]
[1729287338369,5.77062645,2649.2,2649.1,1.7549]
[1729287338761,4.15661104,2649.2,2649.1,1.7549]
[1729287339069,8.3528929,2649.2,2649.1,1.36]
[1729287339269,5.39317645,2649.2,2648.9,0.3971]
[1729287339466,0.37751,2648.8,2648.7,0.37751]
[1729287339765,3.58532,2648.8,2648.7,1.36]
[1729287339969,1.99153541,2648.8,2648.7,1.36]
[1729287340270,4.57407663,2648.8,2648.7,1.36]
[1729287340465,1.99153541,2648.8,2648.7,1.36]
[1729287340663,2.41783541,2648.8,2648.7,1.36]
[1729287340859,2.04031541,2648.8,2648.6,0.3971]
[1729287341060,1.73752,2648.7,2648.6,1.36]
[1729287341567,3.35068096,2648.7,2648.6,1.36]
[1729287342174,1.73752,2648.7,2648.6,1.36]
[1729287343276,1.98965316,2648.7,2648.6,1.36]
[1729287343571,2.35628526,2648.7,2648.6,1.36]
[1729287345481,0.37752,2648.7,2648.6,1.36]
[1729287345674,1.86070807,2648.7,2648.6,1.36]
[1729287345875,1.86075308,2648.7,2648.6,1.36]
[1729287347574,0.37752,2648.7,2648.6,1.36]
[1729287348476,1.86054132,2648.7,2648.6,1.36]
[1729287351667,1.86054132,2648.7,2648.6,1.7663]
[1729287351668,2.35488176,2648.7,2648.6,1.7663]
[1729287353070,2.35488176,2648.7,2648.6,2.14383]
[1729287353273,0.37752,2648.7,2648.6,2.14383]
[1729287353784,0.37752,2648.7,2648.6,1.7663]
[1729287354275,2.35389981,2648.7,2648.6,2.14383]
[1729287354776,2.35394792,2648.7,2648.6,1.7663]
[1729287355070,6.10457476,2648.8,2648.7,1.97736176]
[1729287355269,8.0915312,2648.8,2648.7,3.33736176]
[1729287356175,8.09145998,2648.8,2648.7,3.33736176]
[1729287356569,4.01161,2648.8,2648.7,3.33736176]
[1729287357382,0.80381,2648.8,2648.7,3.33736176]
[1729287357680,5.05006476,2648.9,2648.8,7.2877212]
[1729287357871,4.18885488,2648.9,2648.8,7.2877212]
[1729287358072,7.96405488,2648.9,2648.8,7.2877212]
[1729287358574,6.35479,2648.9,2648.8,7.2877212]
[1729287359673,8.33088804,2648.9,2648.8,7.2877212]
[1729287359879,8.33088804,2648.9,2648.8,8.0915312]
[1729287360682,8.33090134,2648.9,2648.8,8.0915312]
[1729287360885,8.73980134,2648.9,2648.8,8.0915312]
[1729287361480,6.76369,2648.9,2648.8,8.0915312]
[1729287361980,5.67795827,2649.0,2648.9,1.56719804]
[1729287362177,9.02470511,2649.0,2648.9,1.56719804]
[1729287363487,4.94528,2649.0,2648.9,1.56719804]
[1729287364188,4.94528,2649.0,2648.9,9.89808608]
[1729287364683,9.02467218,2649.0,2648.9,9.89808608]
[1729287365672,6.55452214,2649.0,2648.9,9.89808608]
[1729287366083,1.60931344,2649.0,2648.9,9.89808608]
[1729287366282,3.34679344,2649.0,2648.9,9.89808608]
[1729287368591,1.73748,2649.0,2648.9,9.89808608]
[1729287369789,4.70214784,2649.0,2648.9,9.89808608]
[1729287370088,1.73748,2649.0,2648.9,9.89808608]
[1729287370588,4.70214784,2649.0,2648.9,9.89808608]
[1729287370783,1.73748,2649.0,2648.9,9.89808608]
[1729287371485,4.70214784,2649.0,2648.9,9.89808608]
[1729287371991,5.19122556,2649.0,2648.9,9.89808608]
[1729287372187,4.70214784,2649.0,2648.9,9.89808608]
[1729287373188,2.96466784,2649.0,2648.9,9.89808608]
[1729287373699,1.73748,2649.0,2648.9,9.89808608]
[1729287374494,2.22655665,2649.0,2648.9,9.89808608]
[1729287375686,0.48907665,2649.0,2648.9,9.89808608]
[1729287375886,1.36,2649.0,2648.9,10.29558608]
[1729287376090,2.22655665,2649.0,2648.9,10.29558608]
[1729287379101,2.22655665,2649.0,2648.9,8.17077001]
[1729287379405,1.73748,2649.0,2648.9,8.17077001]
[1729287380396,1.1701,2649.1,2649.0,0.48907665]
[1729287380598,2.90756,2649.1,2649.0,0.48907665]
[1729287381494,5.4657529,2649.1,2649.0,0.48907665]
[1729287382591,7.57045172,2649.1,2649.0,0.48907665]
[1729287382893,8.93045172,2649.1,2649.0,0.48907665]
[1729287383193,6.02289172,2649.1,2649.0,0.48907665]
[1729287383388,2.9356529,2649.1,2649.0,0.48907665]
[1729287384495,6.89530869,2649.1,2649.0,0.48907665]
[1729287385494,14.07713768,2649.1,2649.0,0.48907665]
[1729287386003,10.10310869,2649.1,2649.0,0.48907665]
[1729287386197,14.07696273,2649.1,2649.0,0.48907665]
[1729287386704,7.18165404,2649.1,2649.0,0.48907665]
[1729287386903,4.5678,2649.1,2649.0,0.48907665]
[1729287387098,3.58526,2649.1,2649.0,0.48907665]
[1729287387407,4.94526,2649.1,2649.0,0.48907665]
[1729287388895,8.81156354,2649.1,2649.0,0.48907665]
[1729287389103,4.24376354,2649.1,2649.0,0.48907665]
[1729287389308,4.62122354,2649.1,2649.0,0.48907665]
[1729287392001,5.76766974,2649.2,2649.0,0.48907665]
[1729287392204,1.36,2649.1,2649.0,0.48907665]
[1729287392708,1.73746,2649.1,2649.0,0.48907665]
[1729287392893,6.19711193,2649.1,2649.0,0.48907665]
[1729287393098,12.40537611,2649.1,2649.0,0.48907665]
[1729287393904,12.40537611,2649.1,2649.0,0.28611101]
[1729287395898,8.61984917,2649.1,2649.0,0.28611101]
[1729287396099,4.16019724,2649.1,2649.0,0.28611101]
[1729287396802,8.12418293,2649.1,2649.0,0.28611101]
[1729287397700,6.76418293,2649.1,2649.0,0.28611101]
[1729287397897,8.12418293,2649.1,2649.0,0.28611101]
[1729287405114,8.12418293,2649.1,2649.0,4.00897352]
[1729287406509,8.12418293,2649.1,2649.0,4.83337352]
[1729287408506,4.16019724,2649.1,2649.0,4.83337352]
[1729287411118,12.40537903,2649.1,2649.0,4.83337352]
[1729287417020,12.40537903,2649.1,2649.0,2.84834519]
[1729287426021,8.12531893,2649.1,2649.0,2.84834519]
[1729287433129,48.92531893,2649.1,2649.0,2.84834519]
[1729287435642,48.9771305,2649.1,2649.0,2.84834519]
[1729287441136,52.76400373,2649.1,2649.0,2.02394519]
[1729287441441,48.79888204,2649.1,2649.0,1.79925691]
[1729287445334,47.43888204,2649.1,2649.0,1.79925691]
[1729287445540,48.79888204,2649.1,2649.0,1.79925691]
[1729287446937,53.26030214,2649.1,2649.0,1.79925691]
[1729287447133,48.79888204,2649.1,2648.9,9.00467001]
[1729287447447,42.58927157,2649.1,2649.0,1.79925691]
[1729287447738,48.79974601,2649.1,2649.0,1.79925691]
[1729287449140,48.97850899,2649.1,2649.0,1.79925691]
[1729287449838,47.61850899,2649.1,2649.0,1.79925691]
[1729287450042,48.97850899,2649.1,2649.0,1.79925691]
[1729287454140,48.60104899,2649.1,2649.0,1.79925691]
[1729287454451,0.37748,2649.0,2648.9,9.00467001]
[1729287454642,6.27088957,2649.0,2648.9,9.00467001]
[1729287454843,6.32270114,2649.0,2648.9,10.80392692]
[1729287455741,2.85289135,2649.0,2648.9,10.80392692]
[1729287455949,6.32269174,2649.0,2648.9,10.80392692]
[1729287456145,6.63965834,2649.0,2648.9,10.80392692]
[1729287457346,11.10100069,2649.0,2648.9,10.80392692]
[1729287458065,6.63965834,2649.0,2648.9,10.80392692]
[1729287458345,11.10100069,2649.0,2648.9,10.80392692]
[1729287459248,6.63965834,2649.0,2648.9,10.80392692]
[1729287459743,11.10100069,2649.0,2648.9,10.80392692]
[1729287464149,7.3142337,2649.0,2648.9,10.80392692]
[1729287464352,2.85289135,2649.0,2648.9,10.80392692]
[1729287474456,6.81844375,2649.0,2648.9,10.80392692]
[1729287475151,2.85289135,2649.0,2648.9,10.80392692]
[1729287477162,2.85289135,2649.0,2648.9,9.00467001]
[1729287479265,11.10115052,2649.0,2648.9,9.00467001]
[1729287482165,11.10115052,2649.0,2648.9,10.80392692]
[1729287485863,11.10115052,2649.0,2648.9,9.97002692]
[1729287486261,11.27984408,2649.0,2648.9,9.97002692]
[1729287486464,2.85289135,2649.0,2648.9,9.97002692]
[1729287488575,0.42929157,2649.0,2648.9,9.97002692]
[1729287489578,2.85150112,2649.0,2648.9,9.97002692]
[1729287491575,6.81682924,2649.0,2648.9,9.97002692]
[1729287492270,9.84431117,2649.0,2648.9,9.97002692]
[1729287492475,13.80955575,2649.0,2648.9,9.97002692]
[1729287492676,13.80916065,2649.0,2648.9,9.97002692]
[1729287492879,10.0245457,2649.0,2648.9,9.97002692]
[1729287493176,13.80917651,2649.0,2648.9,9.97002692]
[1729287493577,15.66492607,2649.0,2648.9,9.97002692]
[1729287494375,20.62158622,2649.0,2648.9,9.97002692]
[1729287494687,16.16059208,2649.0,2648.9,9.97002692]
[1729287495781,16.16059208,2649.0,2648.9,2.34677001]
[1729287496076,19.93579208,2649.0,2648.9,2.34677001]
[1729287496873,20.15130811,2649.0,2648.9,2.34677001]
[1729287501072,20.15130811,2649.0,2648.9,1.94927001]
[1729287501475,15.19464796,2649.0,2648.9,1.94927001]
[1729287502773,11.98684796,2649.0,2648.9,1.94927001]
[1729287503181,15.19464796,2649.0,2648.9,1.94927001]
[1729287504484,11.98684796,2649.0,2648.9,1.94927001]
[1729287504882,15.19464796,2649.0,2648.9,1.94927001]
[1729287505278,21.01218951,2649.0,2648.9,1.94927001]
[1729287505675,15.19464796,2649.0,2648.9,1.94927001]
[1729287506383,13.34566796,2649.0,2648.8,1.41715507]
[1729287506690,0.37751,2648.8,2648.7,1.26911142]
[1729287506881,8.37057934,2648.8,2648.7,1.26911142]
[1729287507082,14.5774197,2648.8,2648.7,1.26911142]
[1729287507783,14.62923127,2648.8,2648.7,1.26911142]
[1729287509487,15.12882208,2648.8,2648.7,1.26911142]
[1729287509890,10.17216193,2648.8,2648.7,1.26911142]
[1729287510083,8.91478004,2648.8,2648.7,1.26911142]
[1729287510284,15.1216204,2648.8,2648.7,1.26911142]
[1729287511487,18.3294204,2648.8,2648.7,1.26911142]
[1729287516488,17.33687187,2648.8,2648.7,1.26911142]
[1729287516682,13.55224106,2648.8,2648.7,1.26911142]
[1729287516886,17.3291216,2648.8,2648.7,1.26911142]
[1729287517088,13.55224106,2648.8,2648.7,1.26911142]
[1729287517290,17.32909792,2648.8,2648.7,1.26911142]
[1729287517590,13.55224106,2648.8,2648.7,1.26911142]
[1729287518294,10.34444106,2648.8,2648.7,1.26911142]
[1729287518794,13.55224106,2648.8,2648.7,1.26911142]
[1729287519093,10.34444106,2648.8,2648.7,1.26911142]
[1729287519283,13.55224106,2648.8,2648.7,1.26911142]
[1729287523696,17.32859274,2648.8,2648.7,1.26911142]
[1729287523901,13.55224106,2648.8,2648.7,1.26911142]
[1729287526296,17.32870435,2648.8,2648.7,1.26911142]
[1729287526498,13.55224106,2648.8,2648.7,1.26911142]
[1729287528195,17.32884011,2648.8,2648.7,1.26911142]
[1729287528398,13.55224106,2648.8,2648.7,1.26911142]
[1729287529202,13.55224106,2648.8,2648.7,1.68691142]
[1729287530195,13.37230209,2648.8,2648.7,1.68691142]
[1729287531494,13.37230209,2648.8,2648.7,0.00266842]
[1729287531690,0.37752,2648.7,2648.6,0.4137]
[1729287531898,7.6014309,2648.7,2648.6,0.4137]
[1729287532102,13.80061142,2648.7,2648.6,0.4137]
[1729287532301,17.00841142,2648.7,2648.6,0.4137]
[1729287532492,14.58647581,2648.7,2648.6,0.4137]
[1729287533004,11.37867581,2648.7,2648.6,0.4137]
[1729287533305,14.58646387,2648.7,2648.6,0.4137]
[1729287533889,10.13410254,2648.7,2648.6,0.4137]
[1729287534106,6.92630254,2648.7,2648.6,0.4137]
[1729287534302,10.13410254,2648.7,2648.6,0.4137]
[1729287537503,6.92630254,2648.7,2648.6,0.4137]
[1729287537806,10.13410254,2648.7,2648.6,0.4137]
[1729287538402,15.08356101,2648.7,2648.6,0.4137]
[1729287538706,15.26640068,2648.7,2648.6,0.4137]
[1729287538907,10.5272367,2648.7,2648.6,0.4137]
[1729287540306,7.3194367,2648.7,2648.6,0.4137]
[1729287540615,10.5272367,2648.7,2648.6,0.4137]
[1729287541324,10.5272367,2648.7,2647.9,1.36]
[1729287541325,10.1497167,2648.7,2647.9,3.2078]
[1729287541512,10.1497167,2648.7,2648.1,1.1778]
[1729287541513,2.97022713,2648.3,2648.1,1.1778]
[1729287541713,2.97022713,2648.3,2648.2,3.776]
[1729287541911,3.3996187,2648.3,2648.2,3.776]
[1729287542717,4.7596187,2648.3,2648.2,3.776]
[1729287544122,4.3820387,2648.3,2648.2,3.776]
[1729287544424,4.7596187,2648.3,2648.2,3.776]
[1729287544929,0.37759,2648.2,2648.1,1.1778]
[1729287545120,1.73759,2648.2,2648.1,1.1778]
[1729287545416,46.00285498,2648.2,2648.1,1.1778]
[1729287545623,48.4187643,2648.2,2648.1,0.7889]
[1729287545821,48.41999221,2648.2,2648.1,0.7889]
[1729287546024,48.47180378,2648.2,2648.1,0.7889]
[1729287546721,48.96512153,2648.2,2648.1,0.7889]
[1729287547415,52.73979695,2648.2,2648.1,0.7889]
[1729287548017,48.96512153,2648.2,2648.1,0.7889]
[1729287548429,52.73974336,2648.2,2648.1,0.7889]